bitfinex-derivatives/quotes_BTCF0:USTF0_20250720
["timestamp","ask_amount","ask_price","bid_price","bid_amount"]
[1753040980509,0.66191164,118480.0,118470.0,1.72421829]
[1753040983516,0.66191164,118480.0,118470.0,1.72417829]
[1753040988221,0.66191164,118480.0,118470.0,1.91268238]
[1753040989422,0.66191164,118480.0,118470.0,1.72417829]
[1753040995533,0.66191164,118480.0,118470.0,1.7545771]
[1753040996433,0.66191164,118480.0,118470.0,1.7543771]
[1753041005139,0.66191164,118480.0,118470.0,1.1734971]
[1753041005438,0.66191164,118480.0,118470.0,1.7542571]
[1753041005640,0.66191164,118480.0,118470.0,1.72385829]
[1753041006033,0.66191164,118480.0,118470.0,1.72381829]
[1753041013045,0.66191164,118480.0,118470.0,0.59500167]
[1753041013348,0.85041573,118480.0,118470.0,1.17560167]
[1753041013545,0.85041573,118480.0,118470.0,1.01749569]
[1753041014243,0.85041573,118480.0,118470.0,1.16041997]
[1753041014439,0.85041573,118480.0,118470.0,1.37474458]
[1753041014634,0.85041573,118480.0,118470.0,1.32916477]
[1753041015638,0.85041573,118480.0,118470.0,1.35195531]
[1753041016746,0.66191164,118480.0,118470.0,1.35195531]
[1753041016943,0.85041573,118480.0,118470.0,1.35195531]
[1753041017144,0.66191164,118480.0,118470.0,1.35195531]
[1753041017446,0.85041573,118480.0,118470.0,0.77135531]
[1753041017647,0.85041573,118480.0,118470.0,1.35191531]
[1753041018146,0.66191164,118480.0,118470.0,1.35191531]
[1753041018442,0.66191164,118480.0,118470.0,1.18317051]
[1753041018443,0.85041573,118480.0,118470.0,1.18317051]
[1753041019149,0.85041573,118480.0,118470.0,0.82237051]
[1753041019545,0.85041573,118480.0,118470.0,1.18317051]
[1753041022653,0.85041573,118480.0,118470.0,1.35191531]
[1753041022854,0.85041573,118480.0,118470.0,1.18317051]
[1753041023355,0.85041573,118480.0,118470.0,1.35179754]
[1753041023657,0.85041573,118480.0,118470.0,1.18305274]
[1753041025057,0.85041573,118480.0,118470.0,0.82225274]
[1753041025356,0.85041573,118480.0,118470.0,1.18305274]
[1753041025656,0.85041573,118480.0,118470.0,1.1527724]
[1753041032056,0.66191164,118480.0,118470.0,1.1527724]
[1753041032257,0.85041573,118480.0,118470.0,1.1527724]
[1753041039663,0.85041573,118480.0,118470.0,1.3215175]
[1753041040160,0.85041573,118480.0,118470.0,1.35191561]
[1753041040363,0.85041573,118480.0,118470.0,1.18317051]
[1753041041064,0.85041573,118480.0,118470.0,1.35191561]
[1753041041358,0.85041573,118480.0,118470.0,0.99111561]
[1753041041665,0.85041573,118480.0,118470.0,1.18317051]
[1753041041966,0.85041573,118480.0,118470.0,0.99466642]
[1753041042165,0.85041573,118480.0,118470.0,1.18317051]
[1753041043167,0.85041573,118480.0,118470.0,0.82237051]
[1753041044567,0.85041573,118480.0,118470.0,0.05330642]
[1753041044957,0.85041573,118480.0,118470.0,0.63346642]
[1753041045362,0.66191164,118480.0,118470.0,0.63346642]
[1753041045567,0.85041573,118480.0,118470.0,0.58027777]
[1753041046268,0.85041573,118480.0,118470.0,0.76878186]
[1753041046868,0.85041573,118480.0,118470.0,0.58027777]
[1753041050172,1.56852782,118480.0,118470.0,0.00011777]
[1753041050365,1.56852782,118480.0,118470.0,0.58019777]
[1753041053373,1.62929103,118480.0,118470.0,0.58019777]
[1753041053977,1.56852782,118480.0,118470.0,0.58019777]
[1753041059781,1.39971982,118480.0,118470.0,0.58019777]
[1753041066086,1.39971982,118480.0,118470.0,0.00011777]
[1753041066782,1.02271164,118480.0,118470.0,0.00011777]
[1753041066988,1.39971982,118480.0,118470.0,0.00011777]
[1753041073092,1.03891982,118480.0,118470.0,0.00011777]
[1753041073296,1.39971982,118480.0,118470.0,0.00011777]
[1753041074086,1.03891982,118480.0,118470.0,0.00011777]
[1753041074290,1.39971982,118480.0,118470.0,0.00011777]
[1753041074888,1.40008853,118480.0,118470.0,0.00011777]
[1753041077690,1.02308035,118480.0,118470.0,0.00011777]
[1753041077993,1.40008853,118480.0,118470.0,0.00011777]
[1753041094505,1.02308035,118480.0,118470.0,0.00011777]
[1753041094696,1.21158444,118480.0,118470.0,0.18862186]
[1753041094899,1.21158444,118480.0,118470.0,0.00011777]
[1753041095110,1.40008853,118480.0,118470.0,0.00011777]
[1753041096007,1.46085174,118480.0,118470.0,0.18862186]
[1753041097610,1.46085174,118480.0,118470.0,0.00011777]
[1753041098010,1.40008853,118480.0,118470.0,0.00011777]
[1753041098709,1.03928853,118480.0,118470.0,0.00011777]
[1753041099406,0.66228035,118480.0,118470.0,0.00011777]
[1753041099613,1.03928853,118480.0,118470.0,0.00011777]
[1753041100513,1.10005174,118480.0,118470.0,0.00011777]
[1753041100813,1.03928853,118480.0,118470.0,0.00011777]
[1753041103216,0.2193947,118470.0,118460.0,1.29797909]
[1753041103411,0.75682879,118470.0,118460.0,1.29797909]
[1753041104807,0.75682879,118470.0,118460.0,0.93717909]
[1753041105214,0.77569295,118470.0,118460.0,0.93717909]
[1753041105619,0.77569295,118470.0,118460.0,0.96008854]
[1753041107419,0.77569295,118470.0,118460.0,1.32088854]
[1753041107716,0.77569295,118470.0,118460.0,0.96008854]
[1753041108912,0.77569295,118470.0,118460.0,1.32088854]
[1753041109317,0.77569295,118470.0,118460.0,0.96008854]
[1753041109519,0.77569295,118470.0,118460.0,1.32088854]
[1753041109714,0.77569295,118470.0,118460.0,0.96008854]
[1753041109918,0.77569295,118470.0,118460.0,1.32088854]
[1753041110419,0.77569295,118470.0,118460.0,0.96008854]
[1753041110620,0.77569295,118470.0,118460.0,1.32088854]
[1753041110925,0.77569295,118470.0,118460.0,0.96008854]
[1753041111319,0.77569295,118470.0,118460.0,0.77158445]
[1753041111520,0.77569295,118470.0,118460.0,1.13238445]
[1753041111821,0.77569295,118470.0,118460.0,1.32088854]
[1753041112120,0.77569295,118470.0,118460.0,0.96008854]
[1753041112723,0.77569295,118470.0,118460.0,1.32088854]
[1753041118420,0.77569295,118470.0,118460.0,0.96008854]
[1753041119124,0.77569295,118470.0,118460.0,0.98378487]
[1753041120324,0.77569295,118470.0,118460.0,0.79528078]
[1753041120525,0.77569295,118470.0,118460.0,0.98378487]
[1753041123422,0.77569295,118470.0,118460.0,1.34458487]
[1753041125428,0.77569295,118470.0,118460.0,1.15608078]
[1753041125730,0.77569295,118470.0,118460.0,1.34458487]
[1753041126030,0.77569295,118470.0,118460.0,1.15608078]
[1753041126226,0.77569295,118470.0,118460.0,1.34458487]
[1753041126828,0.77569295,118470.0,118460.0,1.15608078]
[1753041127028,0.77569295,118470.0,118460.0,1.34458487]
[1753041128619,0.58718886,118470.0,118460.0,1.34458487]
[1753041128822,0.77569295,118470.0,118460.0,1.34458487]
[1753041129531,0.77569295,118470.0,118460.0,0.98378487]
[1753041129733,0.77569295,118470.0,118460.0,1.17582987]
[1753041130531,0.77569295,118470.0,118460.0,0.98732578]
[1753041130732,0.77569295,118470.0,118460.0,1.17582987]
[1753041134436,0.77569295,118470.0,118460.0,1.34458877]
[1753041135432,0.77569295,118470.0,118460.0,0.98378877]
[1753041135735,0.77569295,118470.0,118460.0,1.32180552]
[1753041136035,0.77569295,118470.0,118460.0,1.15304662]
[1753041136635,0.77569295,118470.0,118460.0,1.32180552]
[1753041137434,0.77569295,118470.0,118460.0,1.15304662]
[1753041137834,0.77569295,118470.0,118460.0,0.79224662]
[1753041138435,0.77569295,118470.0,118460.0,0.96100552]
[1753041141051,0.77569295,118470.0,118460.0,0.98378877]
[1753041141348,0.77569295,118470.0,118460.0,0.96100552]
[1753041142246,0.77569295,118470.0,118460.0,0.77250143]
[1753041142447,0.58718886,118470.0,118460.0,0.96100552]
[1753041142748,0.77569295,118470.0,118460.0,0.96100552]
[1753041145651,0.77569295,118470.0,118460.0,0.98378877]
[1753041145843,0.77569295,118470.0,118460.0,1.01418688]
[1753041147344,0.77569295,118470.0,118460.0,0.98378877]
[1753041147554,0.77569295,118470.0,118460.0,1.01418688]
[1753041148242,0.58718886,118470.0,118460.0,1.01418688]
[1753041148444,0.77569295,118470.0,118460.0,0.98378877]
[1753041148645,0.77569295,118470.0,118460.0,0.98381523]
[1753041148948,0.77569295,118470.0,118460.0,1.01421334]
[1753041149152,0.77569295,118470.0,118460.0,0.98381523]
[1753041149543,0.77569295,118470.0,118460.0,1.01421334]
[1753041149847,0.77569295,118470.0,118460.0,0.98381523]
[1753041150854,0.77569295,118470.0,118460.0,0.82570925]
[1753041151052,0.77569295,118470.0,118460.0,1.01421334]
[1753041153458,0.77569295,118470.0,118460.0,0.84545444]
[1753041154157,0.77569295,118470.0,118460.0,1.01421344]
[1753041155158,0.77569295,118470.0,118460.0,0.82570935]
[1753041155456,0.77569295,118470.0,118460.0,0.84545444]
[1753041155657,0.77569295,118470.0,118460.0,0.81505633]
[1753041156056,0.77569295,118470.0,118460.0,0.62655224]
[1753041156360,0.77569295,118470.0,118460.0,0.81505633]
[1753041157162,0.77569295,118470.0,118460.0,0.8151202]
[1753041159463,0.84403655,118470.0,118460.0,0.8151202]
[1753041162761,0.65553246,118470.0,118460.0,0.8151202]
[1753041163060,0.84403655,118470.0,118460.0,0.8151202]
[1753041164664,0.65553246,118470.0,118460.0,0.8151202]
[1753041164855,0.84403655,118470.0,118460.0,0.8151202]
[1753041165662,0.84403655,118470.0,118460.0,0.62661611]
[1753041166364,0.84403655,118470.0,118460.0,0.8151202]
[1753041171867,0.84403655,118470.0,118460.0,0.62661611]
[1753041172565,0.77569295,118470.0,118460.0,0.62661611]
[1753041172866,0.77569295,118470.0,118460.0,0.8151202]
[1753041173369,0.77569295,118470.0,118460.0,0.8145602]
[1753041181070,0.77569295,118470.0,118460.0,0.62605611]
[1753041183774,0.58718886,118470.0,118460.0,0.62605611]
[1753041183972,0.77569295,118470.0,118460.0,0.8145602]
[1753041184475,0.77569295,118470.0,118460.0,0.62605611]
[1753041185677,0.77569295,118470.0,118460.0,0.60325156]
[1753041186078,0.77569295,118470.0,118460.0,0.60312536]
[1753041186272,0.84470553,118470.0,118460.0,0.60312536]
[1753041188377,0.84470553,118470.0,118460.0,0.60325156]
[1753041189684,0.84470553,118470.0,118460.0,0.5794862]
[1753041189878,0.84470553,118470.0,118460.0,0.60319843]
[1753041190279,0.65620144,118470.0,118460.0,0.60319843]
[1753041190482,0.84470553,118470.0,118460.0,0.60319843]
[1753041191269,0.84470553,118470.0,118460.0,0.02383843]
[1753041191270,1.03320962,118470.0,118460.0,0.02383843]
[1753041191474,1.03320962,118470.0,118460.0,0.60311843]
[1753041191475,1.39400962,118470.0,118460.0,0.60311843]
[1753041194883,1.41077847,118470.0,118460.0,0.60311843]
[1753041198883,1.22227438,118470.0,118460.0,0.60311843]
[1753041201991,1.41077847,118470.0,118460.0,0.60311843]
[1753041210894,1.03377029,118470.0,118460.0,0.60311843]
[1753041211099,1.41077847,118470.0,118460.0,0.60311843]
[1753041211600,1.04997847,118470.0,118460.0,0.60311843]
[1753041211794,1.41077847,118470.0,118460.0,0.60311843]
[1753041212591,1.04997847,118470.0,118460.0,0.60311843]
[1753041212787,1.41077847,118470.0,118460.0,0.60311843]
[1753041223122,1.04997847,118470.0,118460.0,0.60311843]
[1753041223321,1.41077847,118470.0,118460.0,0.60311843]
[1753041225616,1.41077847,118470.0,118460.0,0.5794062]
[1753041226018,1.41077847,118470.0,118460.0,0.60305272]
[1753041226319,1.41077847,118470.0,118460.0,0.5794062]
[1753041231332,1.41077847,118470.0,118460.0,0.60296779]
[1753041232023,1.03377029,118470.0,118460.0,0.60296779]
[1753041232222,1.41077847,118470.0,118460.0,0.60296779]
[1753041235028,1.41077847,118470.0,118460.0,0.02376779]
[1753041236528,0.216259,118460.0,118450.0,0.12145427]
[1753041236826,0.216259,118460.0,118450.0,0.14508943]
[1753041236827,0.93427718,118460.0,118450.0,0.14508943]
[1753041237026,0.93427718,118460.0,118450.0,0.12145427]
[1753041238729,0.93427718,118460.0,118450.0,0.12345427]
[1753041239224,0.93427718,118460.0,118450.0,0.12245427]
[1753041239430,0.93427718,118460.0,118450.0,0.12145427]
[1753041240230,0.95314134,118460.0,118450.0,0.12145427]
[1753041240725,1.31394134,118460.0,118450.0,0.12145427]
[1753041240919,1.29507718,118460.0,118450.0,0.33127827]
[1753041244130,0.93427718,118460.0,118450.0,0.33127827]
[1753041244335,1.29507718,118460.0,118450.0,0.33127827]
[1753041246038,1.29507718,118460.0,118450.0,0.788984]
[1753041248731,0.918069,118460.0,118450.0,0.788984]
[1753041248942,1.29507718,118460.0,118450.0,0.788984]
[1753041250638,0.93427718,118460.0,118450.0,0.788984]
[1753041250827,1.29507718,118460.0,118450.0,0.788984]
[1753041251934,1.29507718,118460.0,118450.0,0.80787294]
[1753041254441,0.918069,118460.0,118450.0,0.80787294]
[1753041254641,1.29507718,118460.0,118450.0,0.80787294]
[1753041256643,1.29507718,118460.0,118450.0,0.61287294]
[1753041256839,0.918069,118460.0,118450.0,0.61287294]
[1753041257041,1.29507718,118460.0,118450.0,0.61287294]
[1753041257339,1.29507718,118460.0,118450.0,0.30787294]
[1753041259244,1.29507718,118460.0,118450.0,0.51769694]
[1753041259550,0.918069,118460.0,118450.0,0.51769694]
[1753041259843,1.29507718,118460.0,118450.0,0.51769694]
[1753041264342,1.29507718,118460.0,118450.0,0.22871294]
[1753041264542,1.29507718,118460.0,118450.0,0.80775294]
[1753041266843,1.29507718,118460.0,118450.0,0.30775294]
[1753041268941,1.29507718,118460.0,118450.0,0.209824]
[1753041269149,1.29507718,118460.0,118450.0,0.788864]
[1753041269341,1.29507718,118460.0,118450.0,0.788824]
[1753041270540,1.29507718,118460.0,118450.0,0.288824]
[1753041270742,0.2259132,118450.0,118440.0,0.02280151]
[1753041270940,0.79258729,118450.0,118440.0,0.60180151]
[1753041271946,0.79258729,118450.0,118440.0,0.60380151]
[1753041272245,0.79258729,118450.0,118440.0,0.7923056]
[1753041272842,0.79258729,118450.0,118440.0,0.7934956]
[1753041273647,0.79258729,118450.0,118440.0,1.0033196]
[1753041274547,0.80110369,118450.0,118440.0,1.0033196]
[1753041274749,0.6125996,118450.0,118440.0,0.9073196]
[1753041275043,0.80110369,118450.0,118440.0,0.3283196]
[1753041275250,0.80110369,118450.0,118440.0,0.9043196]
[1753041275546,0.80110369,118450.0,118440.0,0.73982369]
[1753041275946,0.80110369,118450.0,118440.0,0.72382369]
[1753041276348,0.80110369,118450.0,118440.0,0.72282369]
[1753041276543,0.80110369,118450.0,118440.0,0.5343196]
[1753041276852,0.80110369,118450.0,118440.0,0.5033196]
[1753041277737,0.80110369,118450.0,118440.0,0.7131436]
[1753041278243,0.80110369,118450.0,118440.0,0.8819311]
[1753041279949,0.80110369,118450.0,118440.0,0.7131436]
[1753041280751,0.80110369,118450.0,118440.0,0.8819311]
[1753041283046,0.80110369,118450.0,118440.0,1.07043519]
[1753041283354,0.80110369,118450.0,118440.0,0.8819311]
[1753041283952,0.80110369,118450.0,118440.0,0.3819311]
[1753041284158,0.80110369,118450.0,118440.0,0.2131436]
[1753041286054,0.80110369,118450.0,118440.0,0.788744]
[1753041287858,0.80110369,118450.0,118440.0,0.779744]
[1753041288057,0.80110369,118450.0,118440.0,0.778744]
[1753041288355,0.80110369,118450.0,118440.0,0.9265314]
[1753041288356,0.6125996,118450.0,118440.0,0.9265314]
[1753041288550,0.80110369,118450.0,118440.0,0.9265314]
[1753041288750,0.6125996,118450.0,118440.0,0.9255314]
[1753041288951,0.80110369,118450.0,118440.0,0.9255314]
[1753041289351,0.80110369,118450.0,118440.0,0.9075314]
[1753041289959,0.80110369,118450.0,118440.0,0.722744]
[1753041290166,0.80110369,118450.0,118440.0,0.581744]
[1753041290953,0.80110369,118450.0,118440.0,0.577744]
[1753041291654,0.80110369,118450.0,118440.0,0.561744]
[1753041292166,0.80110369,118450.0,118440.0,0.288744]
[1753041292958,0.80110369,118450.0,118440.0,0.498568]
[1753041293369,0.98960778,118450.0,118440.0,0.498568]
[1753041293551,0.80110369,118450.0,118440.0,0.498568]
[1753041294869,0.6125996,118450.0,118440.0,0.498568]
[1753041295056,0.80110369,118450.0,118440.0,0.498568]
[1753041295767,0.80110369,118450.0,118440.0,0.537028]
[1753041296063,0.80110369,118450.0,118440.0,0.827204]
[1753041296251,0.98960778,118450.0,118440.0,0.288744]
[1753041297160,0.1687875,118440.0,118430.0,1.00857811]
[1753041297359,0.98425568,118440.0,118430.0,1.00857811]
[1753041297566,1.05132568,118440.0,118430.0,1.00857811]
[1753041298068,1.05132568,118440.0,118430.0,0.42965811]
[1753041298258,1.05132568,118440.0,118430.0,1.00857811]
[1753041299165,1.05132568,118440.0,118430.0,1.17737981]
[1753041299466,1.05132568,118440.0,118430.0,1.21840211]
[1753041300274,1.05132568,118440.0,118430.0,1.188004]
[1753041301371,1.05132568,118440.0,118430.0,0.827204]
[1753041301565,1.05132568,118440.0,118430.0,1.188004]
[1753041306169,0.6743175,118440.0,118430.0,1.188004]
[1753041306466,1.05132568,118440.0,118430.0,1.188004]
[1753041310174,0.2520017,118430.0,118420.0,0.18850409]
[1753041310374,0.85986749,118430.0,118420.0,0.57892]
[1753041310879,0.2520159,118420.0,118410.0,1.48083638]
[1753041311077,0.86284999,118420.0,118410.0,1.76815638]
[1753041311273,0.6743459,118420.0,118410.0,1.76815638]
[1753041313180,0.86284999,118420.0,118410.0,1.77015638]
[1753041313383,0.86284999,118420.0,118410.0,1.97998038]
[1753041313887,0.86284999,118420.0,118410.0,1.98198038]
[1753041314280,0.86284999,118420.0,118410.0,1.48198038]
[1753041314478,0.86284999,118420.0,118410.0,1.52418728]
[1753041315579,0.86284999,118420.0,118410.0,1.33568319]
[1753041315784,0.86284999,118420.0,118410.0,0.99997373]
[1753041316179,0.86284999,118420.0,118410.0,0.81146964]
[1753041316372,0.86284999,118420.0,118410.0,0.97029984]
[1753041316677,0.86284999,118420.0,118410.0,0.96829984]
[1753041317585,0.86284999,118420.0,118410.0,0.95729984]
[1753041317883,0.86284999,118420.0,118410.0,0.90929984]
[1753041318489,0.86284999,118420.0,118410.0,0.90229984]
[1753041319080,1.05135408,118420.0,118410.0,0.90229984]
[1753041319283,1.05135408,118420.0,118410.0,0.88429984]
[1753041319582,1.05135408,118420.0,118410.0,0.88329984]
[1753041319883,1.05135408,118420.0,118410.0,0.88229984]
[1753041320582,1.05135408,118420.0,118410.0,0.86729984]
[1753041321083,1.05135408,118420.0,118410.0,0.86329984]
[1753041321284,1.05135408,118420.0,118410.0,0.78829984]
[1753041321677,1.05135408,118420.0,118410.0,0.7477502]
[1753041321882,1.05135408,118420.0,118410.0,0.48029984]
[1753041322985,1.05135408,118420.0,118410.0,0.48129984]
[1753041323284,1.41215408,118420.0,118410.0,0.48129984]
[1753041323774,1.41215408,118420.0,118410.0,0.69112384]
[1753041323978,1.41215408,118420.0,118410.0,0.3796542]
[1753041324284,1.41215408,118420.0,118410.0,0.4595742]
[1753041324480,1.41215408,118420.0,118410.0,0.6284044]
[1753041325492,1.0351459,118420.0,118410.0,0.6284044]
[1753041325687,1.41215408,118420.0,118410.0,0.6284044]
[1753041325882,1.41215408,118420.0,118410.0,0.4595742]
[1753041326288,1.41215408,118420.0,118410.0,0.61280579]
[1753041326989,1.41215408,118420.0,118410.0,0.59780579]
[1753041327290,1.99107408,118420.0,118410.0,0.33780579]
[1753041327987,1.99107408,118420.0,118410.0,0.15323159]
[1753041328190,1.99107408,118420.0,118410.0,0.02623159]
[1753041330290,1.99107408,118420.0,118410.0,0.01923159]
[1753041330482,1.99107408,118420.0,118410.0,0.01423159]
[1753041330989,0.2632002,118410.0,118400.0,0.53515159]
[1753041331192,1.29899027,118410.0,118400.0,0.53515159]
[1753041331788,1.29899027,118410.0,118400.0,0.52315159]
[1753041331990,1.29899027,118410.0,118400.0,0.51115159]
[1753041332289,1.29899027,118410.0,118400.0,0.51315159]
[1753041332788,1.29899027,118410.0,118400.0,0.41215159]
[1753041332989,1.29899027,118410.0,118400.0,0.21015159]
[1753041333398,1.29899027,118410.0,118400.0,0.20515159]
[1753041333983,1.29899027,118410.0,118400.0,0.20215159]
[1753041334193,1.29899027,118410.0,118400.0,0.20015159]
[1753041334789,1.29899027,118410.0,118400.0,0.17815159]
[1753041335282,1.29899027,118410.0,118400.0,0.13515159]
[1753041335484,1.29899027,118410.0,118400.0,0.13015159]
[1753041335795,1.29899027,118410.0,118400.0,0.12715159]
[1753041336186,1.29899027,118410.0,118400.0,0.10715159]
[1753041338592,1.29899027,118410.0,118400.0,0.09315159]
[1753041339096,1.29899027,118410.0,118400.0,0.09215159]
[1753041339396,1.48749436,118410.0,118400.0,0.06215159]
[1753041340093,0.1688587,118390.0,118380.0,0.54818118]
[1753041340286,0.88041279,118390.0,118380.0,1.31560527]
[1753041340487,1.24121279,118390.0,118380.0,0.88660527]
[1753041340888,1.24121279,118390.0,118380.0,0.69810118]
[1753041341199,1.24121279,118390.0,118380.0,0.70410118]
[1753041341386,1.24121279,118390.0,118380.0,0.74657118]
[1753041341885,1.24121279,118390.0,118380.0,0.74673118]
[1753041342085,1.25996782,118390.0,118380.0,0.62899]
[1753041342696,1.26842451,118390.0,118380.0,0.62899]
[1753041343098,1.26842451,118390.0,118380.0,0.12899]
[1753041343401,1.26842451,118390.0,118380.0,0.12989]
[1753041343600,1.07992042,118390.0,118380.0,0.12989]
[1753041343895,1.26842451,118390.0,118380.0,0.12989]
[1753041346898,1.27242451,118390.0,118380.0,0.12989]
[1753041347094,1.08492042,118390.0,118380.0,0.12989]
[1753041347301,1.27342451,118390.0,118380.0,0.12989]
[1753041347807,1.27242451,118390.0,118380.0,0.12989]
[1753041348102,0.2632429,118380.0,118370.0,0.23106591]
[1753041348401,1.22122699,118380.0,118370.0,1.02304739]
[1753041348595,1.22122699,118380.0,118370.0,0.96582609]
[1753041348996,1.22122699,118380.0,118370.0,0.93770479]
[1753041349196,1.22122699,118380.0,118370.0,0.7492007]
[1753041349403,1.22222699,118380.0,118370.0,0.93770479]
[1753041349702,1.22222699,118380.0,118370.0,0.7492007]
[1753041349905,1.22222699,118380.0,118370.0,0.93270479]
[1753041350204,1.22322699,118380.0,118370.0,0.93270479]
[1753041350907,1.22322699,118380.0,118370.0,0.58032]
[1753041351207,1.41173108,118380.0,118370.0,0.58032]
[1753041351798,1.41173108,118380.0,118360.0,0.4604884]
[1753041351799,0.2632572,118370.0,118360.0,0.64899249]
[1753041352106,1.23124129,118370.0,118360.0,1.22927249]
[1753041353101,1.23224129,118370.0,118360.0,1.0407684]
[1753041353303,1.0437372,118370.0,118360.0,1.22927249]
[1753041353505,1.23224129,118370.0,118360.0,1.22927249]
[1753041354303,1.23324129,118370.0,118360.0,1.22927249]
[1753041355109,1.23324129,118370.0,118360.0,1.14227249]
[1753041355310,1.23324129,118370.0,118360.0,0.89228549]
[1753041356008,1.23324129,118370.0,118360.0,0.72928549]
[1753041356208,1.23324129,118370.0,118360.0,0.5407814]
[1753041356708,1.23324129,118370.0,118360.0,0.72928549]
[1753041357906,1.23324129,118370.0,118360.0,0.5407814]
[1753041358211,1.0447372,118370.0,118360.0,0.72928549]
[1753041358415,1.23324129,118370.0,118360.0,0.72928549]
[1753041358615,1.0447372,118370.0,118360.0,0.72928549]
[1753041358814,1.23324129,118370.0,118360.0,0.72928549]
[1753041359015,1.0447372,118370.0,118360.0,0.72928549]
[1753041359319,1.23324129,118370.0,118360.0,0.72928549]
[1753041360417,1.23324129,118370.0,118360.0,0.5407814]
[1753041360713,1.44258929,118370.0,118360.0,0.72928549]
[1753041362618,1.2540852,118370.0,118360.0,0.72928549]
[1753041362810,1.44258929,118370.0,118360.0,0.72928549]
[1753041364311,1.44258929,118370.0,118360.0,0.5407814]
[1753041364512,1.44258929,118370.0,118360.0,0.72928549]
[1753041367107,1.44258929,118370.0,118360.0,0.5407814]
[1753041367612,1.44258929,118370.0,118360.0,0.72928549]
[1753041368012,1.46109476,118370.0,118360.0,0.3677814]
[1753041368211,1.46109476,118370.0,118360.0,0.55628549]
[1753041368607,1.46109476,118370.0,118360.0,0.76878409]
[1753041368812,1.46109476,118370.0,118360.0,0.93768529]
[1753041369112,1.46109476,118370.0,118360.0,0.58028]
[1753041370014,1.46109476,118370.0,118360.0,0.7491812]
[1753041370216,1.27259067,118370.0,118360.0,0.93768529]
[1753041370415,1.46109476,118370.0,118360.0,0.93768529]
[1753041371714,1.27259067,118370.0,118360.0,0.93768529]
[1753041371914,1.46109476,118370.0,118360.0,0.93768529]
[1753041372712,1.46109476,118370.0,118360.0,0.7491812]
[1753041373016,1.46109476,118370.0,118360.0,0.60968529]
[1753041373315,1.46109476,118370.0,118360.0,0.4211812]
[1753041373516,1.46109476,118370.0,118360.0,0.60968529]
[1753041373714,1.46109476,118370.0,118360.0,0.43768529]
[1753041377117,1.27259067,118370.0,118360.0,0.43768529]
[1753041377319,1.46109476,118370.0,118360.0,0.43768529]
[1753041378220,1.46109476,118370.0,118360.0,0.46808766]
[1753041378421,1.46109476,118370.0,118360.0,0.29918646]
[1753041378815,1.46109476,118370.0,118360.0,0.46808766]
[1753041379012,1.27259067,118370.0,118360.0,0.46808766]
[1753041379422,1.46109476,118370.0,118360.0,0.51360046]
[1753041379821,1.46109476,118370.0,118360.0,0.43332046]
[1753041380022,1.46109476,118370.0,118360.0,1.01412046]
[1753041381220,1.46109476,118370.0,118360.0,0.82561637]
[1753041381422,1.46109476,118370.0,118360.0,1.01412046]
[1753041382126,1.10029476,118370.0,118360.0,1.01412046]
[1753041382329,1.46109476,118370.0,118360.0,1.01412046]
[1753041382629,1.46109476,118370.0,118360.0,0.84521926]
[1753041382819,1.46109476,118370.0,118360.0,1.01412036]
[1753041383021,1.44258929,118370.0,118360.0,1.01412036]
[1753041383429,1.44258929,118370.0,118360.0,0.84521926]
[1753041383624,1.44258929,118370.0,118360.0,0.84509926]
[1753041383832,1.44258929,118370.0,118360.0,0.53360335]
[1753041384628,1.44258929,118370.0,118360.0,0.34509926]
[1753041384827,1.44258929,118370.0,118360.0,0.53360335]
[1753041385229,1.44258929,118370.0,118360.0,0.34509926]
[1753041385429,1.44258929,118370.0,118360.0,0.70250445]
[1753041385828,1.44258929,118370.0,118360.0,0.53360335]
[1753041387428,1.44258929,118370.0,118360.0,0.70250455]
[1753041387923,0.1689012,118360.0,118350.0,0.31293783]
[1753041388122,0.7732612,118360.0,118350.0,1.16179192]
[1753041389928,0.7732612,118360.0,118350.0,1.11956422]
[1753041389929,1.1340612,118360.0,118350.0,1.11956422]
[1753041390430,1.3434092,118360.0,118350.0,1.11956422]
[1753041391018,1.3434092,118360.0,118350.0,1.08896422]
[1753041391421,0.2956224,118350.0,118330.0,0.56024303]
[1753041391625,1.38928649,118350.0,118340.0,0.81821409]
[1753041391826,1.38928649,118350.0,118340.0,1.02936899]
[1753041392028,1.38928649,118350.0,118340.0,0.44860899]
[1753041392229,1.38928649,118350.0,118340.0,1.02948899]
[1753041392629,1.39028649,118350.0,118340.0,1.02948899]
[1753041393230,1.2017824,118350.0,118340.0,1.04674422]
[1753041393431,1.39028649,118350.0,118340.0,1.04674422]
[1753041393927,1.39878001,118350.0,118340.0,1.04674422]
[1753041394234,1.21027592,118350.0,118340.0,1.04674422]
[1753041394436,1.39878001,118350.0,118340.0,1.04674422]
[1753041394836,1.39878001,118350.0,118340.0,0.85824013]
[1753041395031,1.39878001,118350.0,118340.0,1.00451252]
[1753041395233,1.60812801,118350.0,118340.0,1.00451252]
[1753041397237,1.60812801,118350.0,118340.0,0.81600843]
[1753041397436,1.59963449,118350.0,118340.0,1.00451252]
[1753041398339,1.48025434,118350.0,118340.0,0.81600843]
[1753041398527,1.48025434,118350.0,118340.0,1.19301661]
[1753041398730,1.48025434,118350.0,118340.0,1.91441661]
[1753041398731,1.0080985,118350.0,118340.0,1.91441661]
[1753041398927,1.0080985,118350.0,118340.0,1.58441661]
[1753041399338,1.0080985,118350.0,118340.0,1.22361661]
[1753041399526,1.0080985,118350.0,118340.0,1.22353661]
[1753041399731,1.3688985,118350.0,118340.0,1.22353661]
[1753041400739,1.55740259,118350.0,118340.0,1.19293661]
[1753041401138,1.19660259,118350.0,118340.0,1.19293661]
[1753041402234,1.0080985,118350.0,118340.0,1.19293661]
[1753041403834,1.0080985,118350.0,118340.0,1.23851605]
[1753041404639,1.19660259,118350.0,118340.0,1.23851605]
[1753041405740,1.19660259,118350.0,118340.0,1.19293661]
[1753041406140,1.55740259,118350.0,118340.0,1.19293661]
[1753041406440,1.55740259,118350.0,118340.0,0.81592843]
[1753041406638,1.55740259,118350.0,118340.0,1.19293661]
[1753041406936,1.55740259,118350.0,118340.0,0.44321341]
[1753041407136,1.55740259,118350.0,118340.0,0.83658932]
[1753041407337,1.55740259,118350.0,118340.0,1.00551902]
[1753041407533,1.55740259,118350.0,118340.0,0.42363902]
[1753041407738,1.55740259,118350.0,118340.0,0.83662932]
[1753041408141,1.55740259,118350.0,118340.0,0.83658932]
[1753041408344,1.55740259,118350.0,118340.0,0.06620523]
[1753041408545,1.55740259,118350.0,118340.0,0.01725523]
[1753041408738,1.55740259,118350.0,118340.0,0.5679222]
[1753041409146,1.55740259,118350.0,118340.0,0.1219222]
[1753041410345,1.55740259,118350.0,118340.0,0.2908518]
[1753041410846,1.55740259,118350.0,118340.0,0.19171657]
[1753041411047,1.55740259,118350.0,118340.0,0.60458697]
[1753041411345,1.55740259,118350.0,118340.0,0.77351667]
[1753041412342,1.81377203,118350.0,118340.0,0.02278697]
[1753041412549,0.4733039,118330.0,118320.0,0.41525089]
[1753041412747,1.1141039,118330.0,118320.0,0.99677089]
[1753041413745,1.1141039,118330.0,118320.0,1.02815007]
[1753041414550,1.1141039,118330.0,118320.0,1.21665416]
[1753041414847,1.1141039,118330.0,118320.0,1.21661416]